{"text_format":"3","workbook":"xlsx","n_sheets":7,"sheets":["Poniedziałek","Wtorek","Środa","Czwartek","Piątek","Sobota","Niedziela"],"not_rendered":{"defined_names":24},"read":"whole","date_system":"1900"}

{"sheet":"Poniedziałek","index":0,"n_rows":10,"n_cols":13,"rows_kept":10,"merged":[[1,1,2,1],[1,2,1,10],[1,11,1,12],[2,2,2,10],[2,11,2,12]]}
[null,"HARMONOGRAM PRACY ZMIANOWEJ"]
[null,"PONIEDZIAŁEK","Na tydzień: ",{"$nulls":8},"DATA"]
[null,null,"Nazwa działu: ",{"$nulls":8},"DZIAŁ"]
[null,"Imię i nazwisko pracownika","7:00","8:00","9:00","10:00","11:00","12:00","13:00","14:00","15:00","Zwolnienie lekarskie?","SUMA"]
[null,"Krystyna S","kierownik","kierownik","kierownik","kierownik","kierownik","kierownik","kierownik","kierownik","kierownik",null,{"$f":"IFERROR(COUNTIF(Poniedziałek[[#This Row],[7:00]:[15:00]],\"*\"),\"\")","v":9}]
[null,"Maciej D",null,"kasjer","kasjer","kasjer","kasjer",{"$nulls":5},{"$f":"IFERROR(COUNTIF(Poniedziałek[[#This Row],[7:00]:[15:00]],\"*\"),\"\")","v":4}]
[null,"Piotr D",null,"recepcja","recepcja","recepcja","recepcja ","recepcja","recepcja","recepcja",null,null,{"$f":"IFERROR(COUNTIF(Poniedziałek[[#This Row],[7:00]:[15:00]],\"*\"),\"\")","v":7}]
[null,"Jakub W",null,"recepcja","recepcja","recepcja","recepcja ","recepcja","recepcja","recepcja",null,null,{"$f":"IFERROR(COUNTIF(Poniedziałek[[#This Row],[7:00]:[15:00]],\"*\"),\"\")","v":7}]
[null,"Jerzy P",{"$nulls":10},{"$f":"IFERROR(COUNTIF(Poniedziałek[[#This Row],[7:00]:[15:00]],\"*\"),\"\")","v":0}]
[null,"Zofia W",{"$nulls":5},"kasjer","kasjer","kasjer","kasjer",null,{"$f":"IFERROR(COUNTIF(Poniedziałek[[#This Row],[7:00]:[15:00]],\"*\"),\"\")","v":4}]

{"sheet":"Wtorek","index":1,"n_rows":10,"n_cols":13,"rows_kept":10,"merged":[[1,1,2,1],[1,2,1,10],[1,11,1,12],[2,2,2,10],[2,11,2,12]]}
[null,{"$f":"Tytuł_HARMONOGRAMU_PRACY_ZMIANOWEJ","v":"HARMONOGRAM PRACY ZMIANOWEJ"}]
[null,"WTOREK","Na tydzień: ",{"$nulls":8},{"$f":"DATA","v":"DATA"}]
[null,null,"Nazwa działu: ",{"$nulls":8},{"$f":"DZIAŁ","v":"DZIAŁ"}]
[null,"Imię i nazwisko pracownika","7:00","8:00","9:00","10:00","11:00","12:00","13:00","14:00","15:00","Zwolnienie lekarskie?","SUMA"]
[null,"Krystyna S","kierownik","kierownik","kierownik","kierownik","kierownik","kierownik","kierownik","kierownik","kierownik",null,{"$f":"IFERROR(COUNTIF(Wtorek[[#This Row],[7:00]:[15:00]],\"*\"),\"\")","v":9}]
[null,"Maciej D",null,"kasjer","kasjer","kasjer","kasjer",{"$nulls":5},{"$f":"IFERROR(COUNTIF(Wtorek[[#This Row],[7:00]:[15:00]],\"*\"),\"\")","v":4}]
[null,"Piotr D",null,"recepcja","recepcja","recepcja","recepcja ","recepcja","recepcja","recepcja",null,null,{"$f":"IFERROR(COUNTIF(Wtorek[[#This Row],[7:00]:[15:00]],\"*\"),\"\")","v":7}]
[null,"Jakub W",null,"recepcja","recepcja","recepcja","recepcja ","recepcja","recepcja","recepcja",null,null,{"$f":"IFERROR(COUNTIF(Wtorek[[#This Row],[7:00]:[15:00]],\"*\"),\"\")","v":7}]
[null,"Jerzy P",{"$nulls":9},"Zwolnienie lekarskie",{"$f":"IFERROR(COUNTIF(Wtorek[[#This Row],[7:00]:[15:00]],\"*\"),\"\")","v":0}]
[null,"Zofia W",{"$nulls":5},"kasjer","kasjer","kasjer","kasjer",null,{"$f":"IFERROR(COUNTIF(Wtorek[[#This Row],[7:00]:[15:00]],\"*\"),\"\")","v":4}]

{"sheet":"Środa","index":2,"n_rows":10,"n_cols":13,"rows_kept":10,"merged":[[1,1,2,1],[1,2,1,10],[1,11,1,12],[2,2,2,10],[2,11,2,12]]}
[null,{"$f":"Tytuł_HARMONOGRAMU_PRACY_ZMIANOWEJ","v":"HARMONOGRAM PRACY ZMIANOWEJ"}]
[null,"ŚRODA","Na tydzień: ",{"$nulls":8},{"$f":"DATA","v":"DATA"}]
[null,null,"Nazwa działu: ",{"$nulls":8},{"$f":"DZIAŁ","v":"DZIAŁ"}]
[null,"Imię i nazwisko pracownika","7:00","8:00","9:00","10:00","11:00","12:00","13:00","14:00","15:00","Zwolnienie lekarskie?","SUMA"]
[null,"Krystyna S","kierownik","kierownik","kierownik","kierownik","kierownik","kierownik","kierownik","kierownik","kierownik",null,{"$f":"IFERROR(COUNTIF(Środa[[#This Row],[7:00]:[15:00]],\"*\"),\"\")","v":9}]
[null,"Maciej D",null,"kasjer","kasjer","kasjer","kasjer",{"$nulls":5},{"$f":"IFERROR(COUNTIF(Środa[[#This Row],[7:00]:[15:00]],\"*\"),\"\")","v":4}]
[null,"Piotr D",null,"recepcja","recepcja","recepcja","recepcja ","recepcja","recepcja","recepcja",null,null,{"$f":"IFERROR(COUNTIF(Środa[[#This Row],[7:00]:[15:00]],\"*\"),\"\")","v":7}]
[null,"Jakub W",null,"recepcja","recepcja","recepcja","recepcja ","recepcja","recepcja","recepcja",null,null,{"$f":"IFERROR(COUNTIF(Środa[[#This Row],[7:00]:[15:00]],\"*\"),\"\")","v":7}]
[null,"Jerzy P",{"$nulls":9},"Zwolnienie lekarskie",{"$f":"IFERROR(COUNTIF(Środa[[#This Row],[7:00]:[15:00]],\"*\"),\"\")","v":0}]
[null,"Zofia W",{"$nulls":5},"kasjer","kasjer","kasjer","kasjer",null,{"$f":"IFERROR(COUNTIF(Środa[[#This Row],[7:00]:[15:00]],\"*\"),\"\")","v":4}]

{"sheet":"Czwartek","index":3,"n_rows":10,"n_cols":13,"rows_kept":10,"merged":[[1,1,2,1],[1,2,1,10],[1,11,1,12],[2,2,2,10],[2,11,2,12]]}
[null,{"$f":"Tytuł_HARMONOGRAMU_PRACY_ZMIANOWEJ","v":"HARMONOGRAM PRACY ZMIANOWEJ"}]
[null,"CZWARTEK","Na tydzień: ",{"$nulls":8},{"$f":"DATA","v":"DATA"}]
[null,null,"Nazwa działu: ",{"$nulls":8},{"$f":"DZIAŁ","v":"DZIAŁ"}]
[null,"Imię i nazwisko pracownika","7:00","8:00","9:00","10:00","11:00","12:00","13:00","14:00","15:00","Zwolnienie lekarskie?","SUMA"]
[null,"Krystyna S","kierownik","kierownik","kierownik","kierownik","kierownik","kierownik","kierownik","kierownik","kierownik",null,{"$f":"IFERROR(COUNTIF(Czwartek[[#This Row],[7:00]:[15:00]],\"*\"),\"\")","v":9}]
[null,"Maciej D",null,"kasjer","kasjer","kasjer","kasjer",{"$nulls":5},{"$f":"IFERROR(COUNTIF(Czwartek[[#This Row],[7:00]:[15:00]],\"*\"),\"\")","v":4}]
[null,"Piotr D",null,"recepcja","recepcja","recepcja","recepcja ","recepcja","recepcja","recepcja",null,null,{"$f":"IFERROR(COUNTIF(Czwartek[[#This Row],[7:00]:[15:00]],\"*\"),\"\")","v":7}]
[null,"Jakub W",null,"recepcja","recepcja","recepcja","recepcja ","recepcja","recepcja","recepcja",null,null,{"$f":"IFERROR(COUNTIF(Czwartek[[#This Row],[7:00]:[15:00]],\"*\"),\"\")","v":7}]
[null,"Jerzy P",{"$nulls":9},"Zwolnienie lekarskie",{"$f":"IFERROR(COUNTIF(Czwartek[[#This Row],[7:00]:[15:00]],\"*\"),\"\")","v":0}]
[null,"Zofia W",{"$nulls":5},"kasjer","kasjer","kasjer","kasjer",null,{"$f":"IFERROR(COUNTIF(Czwartek[[#This Row],[7:00]:[15:00]],\"*\"),\"\")","v":4}]

{"sheet":"Piątek","index":4,"n_rows":10,"n_cols":13,"rows_kept":10,"merged":[[1,1,2,1],[1,2,1,10],[1,11,1,12],[2,2,2,10],[2,11,2,12]]}
[null,{"$f":"Tytuł_HARMONOGRAMU_PRACY_ZMIANOWEJ","v":"HARMONOGRAM PRACY ZMIANOWEJ"}]
[null,"PIĄTEK","Na tydzień: ",{"$nulls":8},{"$f":"DATA","v":"DATA"}]
[null,null,"Nazwa działu: ",{"$nulls":8},{"$f":"DZIAŁ","v":"DZIAŁ"}]
[null,"Imię i nazwisko pracownika","7:00","8:00","9:00","10:00","11:00","12:00","13:00","14:00","15:00","Zwolnienie lekarskie?","SUMA"]
[null,"Krystyna S","kierownik","kierownik","kierownik","kierownik","kierownik","kierownik","kierownik","kierownik","kierownik",null,{"$f":"IFERROR(COUNTIF(Piątek[[#This Row],[7:00]:[15:00]],\"*\"),\"\")","v":9}]
[null,"Maciej D",null,"kasjer","kasjer","kasjer","kasjer",{"$nulls":5},{"$f":"IFERROR(COUNTIF(Piątek[[#This Row],[7:00]:[15:00]],\"*\"),\"\")","v":4}]
[null,"Piotr D",null,"recepcja","recepcja","recepcja","recepcja ","recepcja","recepcja","recepcja",null,null,{"$f":"IFERROR(COUNTIF(Piątek[[#This Row],[7:00]:[15:00]],\"*\"),\"\")","v":7}]
[null,"Jakub W",null,"recepcja","recepcja","recepcja","recepcja ","recepcja","recepcja","recepcja",null,null,{"$f":"IFERROR(COUNTIF(Piątek[[#This Row],[7:00]:[15:00]],\"*\"),\"\")","v":7}]
[null,"Jerzy P",{"$nulls":9},"Zwolnienie lekarskie",{"$f":"IFERROR(COUNTIF(Piątek[[#This Row],[7:00]:[15:00]],\"*\"),\"\")","v":0}]
[null,"Zofia W",{"$nulls":5},"kasjer","kasjer","kasjer","kasjer",null,{"$f":"IFERROR(COUNTIF(Piątek[[#This Row],[7:00]:[15:00]],\"*\"),\"\")","v":4}]

{"sheet":"Sobota","index":5,"n_rows":10,"n_cols":13,"rows_kept":10,"merged":[[1,1,2,1],[1,2,1,10],[1,11,1,12],[2,2,2,10],[2,11,2,12]]}
[null,{"$f":"Tytuł_HARMONOGRAMU_PRACY_ZMIANOWEJ","v":"HARMONOGRAM PRACY ZMIANOWEJ"}]
[null,"SOBOTA","Na tydzień: ",{"$nulls":8},{"$f":"DATA","v":"DATA"}]
[null,null,"Nazwa działu: ",{"$nulls":8},{"$f":"DZIAŁ","v":"DZIAŁ"}]
[null,"Imię i nazwisko pracownika","7:00","8:00","9:00","10:00","11:00","12:00","13:00","14:00","15:00","Zwolnienie lekarskie?","SUMA"]
[null,"Krystyna S","kierownik","kierownik","kierownik","kierownik","kierownik","kierownik","kierownik","kierownik","kierownik",null,{"$f":"IFERROR(COUNTIF(Sobota[[#This Row],[7:00]:[15:00]],\"*\"),\"\")","v":9}]
[null,"Maciej D",null,"kasjer","kasjer","kasjer","kasjer",{"$nulls":5},{"$f":"IFERROR(COUNTIF(Sobota[[#This Row],[7:00]:[15:00]],\"*\"),\"\")","v":4}]
[null,"Piotr D",null,"recepcja","recepcja","recepcja","recepcja ","recepcja","recepcja","recepcja",null,null,{"$f":"IFERROR(COUNTIF(Sobota[[#This Row],[7:00]:[15:00]],\"*\"),\"\")","v":7}]
[null,"Jakub W",null,"recepcja","recepcja","recepcja","recepcja ","recepcja","recepcja","recepcja",null,null,{"$f":"IFERROR(COUNTIF(Sobota[[#This Row],[7:00]:[15:00]],\"*\"),\"\")","v":7}]
[null,"Jerzy P",{"$nulls":9},"Zwolnienie lekarskie",{"$f":"IFERROR(COUNTIF(Sobota[[#This Row],[7:00]:[15:00]],\"*\"),\"\")","v":0}]
[null,"Zofia W",{"$nulls":5},"kasjer","kasjer","kasjer","kasjer",null,{"$f":"IFERROR(COUNTIF(Sobota[[#This Row],[7:00]:[15:00]],\"*\"),\"\")","v":4}]

{"sheet":"Niedziela","index":6,"n_rows":10,"n_cols":13,"rows_kept":10,"merged":[[1,1,2,1],[1,2,1,10],[1,11,1,12],[2,2,2,10],[2,11,2,12]]}
[null,{"$f":"Tytuł_HARMONOGRAMU_PRACY_ZMIANOWEJ","v":"HARMONOGRAM PRACY ZMIANOWEJ"}]
[null,"NIEDZIELA","Na tydzień: ",{"$nulls":8},{"$f":"DATA","v":"DATA"}]
[null,null,"Nazwa działu: ",{"$nulls":8},{"$f":"DZIAŁ","v":"DZIAŁ"}]
[null,"Imię i nazwisko pracownika","7:00","8:00","9:00","10:00","11:00","12:00","13:00","14:00","15:00","Zwolnienie lekarskie?","SUMA"]
[null,"Krystyna S","kierownik","kierownik","kierownik","kierownik","kierownik","kierownik","kierownik","kierownik","kierownik",null,{"$f":"IFERROR(COUNTIF(Niedziela[[#This Row],[7:00]:[15:00]],\"*\"),\"\")","v":9}]
[null,"Maciej D",null,"kasjer","kasjer","kasjer","kasjer",{"$nulls":5},{"$f":"IFERROR(COUNTIF(Niedziela[[#This Row],[7:00]:[15:00]],\"*\"),\"\")","v":4}]
[null,"Piotr D",null,"recepcja","recepcja","recepcja","recepcja ","recepcja","recepcja","recepcja",null,null,{"$f":"IFERROR(COUNTIF(Niedziela[[#This Row],[7:00]:[15:00]],\"*\"),\"\")","v":7}]
[null,"Jakub W",null,"recepcja","recepcja","recepcja","recepcja ","recepcja","recepcja","recepcja",null,null,{"$f":"IFERROR(COUNTIF(Niedziela[[#This Row],[7:00]:[15:00]],\"*\"),\"\")","v":7}]
[null,"Jerzy P",{"$nulls":9},"Zwolnienie lekarskie",{"$f":"IFERROR(COUNTIF(Niedziela[[#This Row],[7:00]:[15:00]],\"*\"),\"\")","v":0}]
[null,"Zofia W",{"$nulls":5},"kasjer","kasjer","kasjer","kasjer",null,{"$f":"IFERROR(COUNTIF(Niedziela[[#This Row],[7:00]:[15:00]],\"*\"),\"\")","v":4}]